bitfinex/quotes_SOLUSD_20250207
["timestamp","ask_amount","ask_price","bid_price","bid_amount"]
[1738961589481,5.2562,190.25,190.2,0.063]
[1738961589778,10.4562,190.25,190.2,0.063]
[1738961590175,26.44725572,190.24,190.2,0.063]
[1738961591484,5.2,190.25,190.2,0.063]
[1738961592287,5.2,190.25,190.2,26.51025572]
[1738961592458,5.2,190.25,190.21,26.44725572]
[1738961593170,5.2,190.25,190.2,26.51025572]
[1738961593477,26.44725572,190.24,190.2,0.063]
[1738961594265,31.70375572,190.24,190.2,0.063]
[1738961594987,36.90375572,190.24,190.2,0.063]
[1738961596387,26.44725572,190.21,190.2,0.063]
[1738961597981,26.44725572,190.22,190.2,0.063]
[1738961598194,26.44725572,190.21,190.2,0.063]
[1738961598700,31.70455572,190.21,190.2,0.063]
[1738961600076,32.69066665,190.21,190.2,0.063]
[1738961600482,31.70455572,190.21,190.2,0.063]
[1738961604683,21.84838293,190.21,190.2,0.063]
[1738961606572,22.83457181,190.21,190.2,0.063]
[1738961607365,66.98080327,190.21,190.07,6.3982]
[1738961607571,16.59108293,190.15,190.08,16.59108293]
[1738961608395,21.85028293,190.15,190.08,16.59108293]
[1738961609102,21.85028293,190.15,190.08,21.85198293]
[1738961609478,21.84978293,190.16,190.08,21.85198293]
[1738961609704,21.84978293,190.16,190.09,16.59108293]
[1738961610475,21.84978293,190.16,190.09,21.85148293]
[1738961611010,27.04978293,190.16,190.09,21.85148293]
[1738961611510,21.84978293,190.16,190.09,21.85148293]
[1738961611687,16.59108293,190.18,190.08,5.38639]
[1738961611875,5.2576,190.21,190.15,16.59108293]
[1738961612080,21.84828293,190.22,190.15,16.59108293]
[1738961612278,16.59108293,190.2,190.13,16.59108293]
[1738961612477,16.59108293,190.19,190.12,16.59108293]
[1738961613201,16.59108293,190.2,190.13,16.59108293]
[1738961613382,16.59108293,190.19,190.12,21.85088293]
[1738961613704,16.59108293,190.21,190.13,16.71657293]
[1738961614074,16.59108293,190.2,190.13,16.71657293]
[1738961614274,16.59108293,190.2,190.13,328.59108293]
[1738961614977,21.84868293,190.2,190.13,328.59108293]
[1738961615489,21.84868293,190.2,190.13,312.0]
[1738961615797,16.59108293,190.19,190.12,21.85088293]
[1738961617203,27.04908293,190.19,190.12,16.59108293]
[1738961617411,27.04908293,190.19,190.12,21.85088293]
[1738961617412,21.84908293,190.19,190.12,21.85088293]
[1738961618212,21.84908293,190.19,190.12,16.59108293]
[1738961618581,5.258,190.19,190.12,21.85078293]
[1738961618787,21.84878293,190.2,190.13,16.59108293]
[1738961619300,16.59108293,190.2,190.13,21.85058293]
[1738961619610,21.84868293,190.2,190.13,21.85058293]
[1738961620307,10.4573,190.21,190.14,16.59108293]
[1738961620603,5.2,190.21,190.15,16.59108293]
[1738961621187,16.59108293,190.25,190.18,16.59108293]
[1738961621393,27.04698293,190.26,190.19,16.59108293]
[1738961621588,21.84698293,190.26,190.19,16.59108293]
[1738961621982,16.59108293,190.21,190.17,6.3012]
[1738961622183,16.59108293,190.21,190.14,21.97577293]
[1738961622382,16.59108293,190.21,190.14,5.38469]
[1738961623208,21.84848293,190.21,190.14,5.38469]
[1738961624005,21.84848293,190.21,190.14,21.97577293]
[1738961624606,21.84788293,190.23,190.15,16.59108293]
[1738961624806,0.03,190.21,190.16,16.59108293]
[1738961625309,0.03,190.21,190.16,328.59108293]
[1738961625506,0.03,190.21,190.16,333.84958293]
[1738961625711,0.03,190.21,190.17,16.59108293]
[1738961626400,0.03,190.21,190.17,0.12549]
[1738961627516,0.03,190.21,190.17,5.38389]
[1738961628121,0.03,190.21,190.19,0.12549]
[1738961628289,0.03,190.21,190.2,16.59108293]
[1738961629515,0.03,190.21,190.2,21.84868293]
[1738961630091,0.03,190.21,190.19,16.59108293]
[1738961630495,0.03,190.21,190.16,16.59108293]
[1738961630717,0.03,190.21,190.16,21.84968293]
[1738961630907,0.03,190.21,190.17,0.12549]
[1738961631107,0.03,190.21,190.17,16.71657293]
[1738961631305,0.03,190.21,190.16,333.84968293]
[1738961631519,0.03,190.21,190.16,312.0]
[1738961631852,16.59108293,190.2,190.13,28.38748293]
[1738961632024,0.03,190.21,190.15,16.59108293]
[1738961632527,0.03,190.21,190.16,16.59108293]
[1738961634510,16.59108293,190.19,190.13,6.5369]
[1738961634814,16.59108293,190.19,190.12,0.12549]
[1738961635016,16.59108293,190.19,190.12,16.59108293]
[1738961635213,16.59108293,190.19,190.11,330.21458293]
[1738961635727,16.59108293,190.17,190.11,0.12549]
[1738961635917,21.84938293,190.18,190.11,16.71657293]
[1738961636230,21.84898293,190.19,190.12,16.59108293]
[1738961636914,21.84898293,190.19,190.11,21.97667293]
[1738961636915,16.59108293,190.18,190.11,21.97667293]
[1738961637647,21.84918293,190.18,190.11,21.97667293]
[1738961637935,5.2581,190.18,190.11,16.71657293]
[1738961638539,5.2581,190.18,190.12,16.59108293]
[1738961638909,10.4578,190.2,190.13,16.59108293]
[1738961639739,5.2578,190.2,190.13,16.59108293]
[1738961640219,21.84888293,190.2,190.13,16.59108293]
[1738961640423,16.59108293,190.19,190.12,16.59108293]
[1738961640811,21.84888293,190.2,190.13,16.59108293]
[1738961641312,16.59108293,190.19,190.12,16.59108293]
[1738961641531,21.84918293,190.18,190.11,16.71657293]
[1738961641848,21.84918293,190.18,190.08,6.6646]
[1738961641849,16.59108293,190.17,190.09,16.59108293]
[1738961642023,16.59108293,190.15,190.08,16.59108293]
[1738961642212,16.59108293,190.15,190.09,312.0]
[1738961642748,16.59108293,190.16,190.09,328.59108293]
[1738961642935,16.59108293,190.15,190.09,312.0]
[1738961643464,5.2587,190.16,190.09,328.59108293]
[1738961643756,21.84978293,190.16,190.09,328.59108293]
[1738961643969,16.59108293,190.15,190.09,312.0]
[1738961644370,21.84978293,190.16,190.09,328.59108293]
[1738961645061,16.59108293,190.15,190.09,312.0]
[1738961645369,5.2587,190.16,190.06,18.15578293]
[1738961645370,16.59108293,190.13,190.06,18.15578293]
[1738961645555,21.85138293,190.1,190.03,23.25568293]
[1738961646548,16.59108293,190.11,190.03,23.25568293]
[1738961646742,16.59108293,190.1,190.03,23.25568293]
[1738961647162,16.59108293,190.1,190.03,5.2623]
[1738961647368,16.59108293,190.13,190.05,16.59108293]
[1738961647565,16.59108293,190.14,190.06,16.59108293]
[1738961647969,21.85008293,190.15,190.08,16.59108293]
[1738961648144,21.85008293,190.15,190.1,312.0]
[1738961648145,16.59108293,190.15,190.1,312.0]
[1738961648343,5.2,190.17,190.1,328.59108293]
[1738961648344,16.59108293,190.17,190.1,328.59108293]
[1738961648548,16.59108293,190.16,190.1,312.0]
[1738961649745,21.84988293,190.16,190.1,312.0]
[1738961650472,16.59108293,190.16,190.1,312.0]
[1738961650879,21.84948293,190.17,190.1,312.0]
[1738961651294,5.2584,190.17,190.1,16.59108293]
[1738961651472,5.2576,190.2,190.14,16.59108293]
[1738961651680,5.2876,190.2,190.14,16.59108293]
[1738961652068,0.03,190.2,190.16,16.59108293]
[1738961652766,0.03,190.2,190.14,16.59108293]
[1738961653987,16.59108293,190.19,190.11,16.59108293]
[1738961654485,16.59108293,190.18,190.14,312.0]
[1738961654687,16.59108293,190.17,190.09,16.59108293]
[1738961654996,16.59108293,190.15,190.07,16.59108293]
[1738961655302,16.59108293,190.17,190.1,16.59108293]
[1738961655479,5.2,190.19,190.1,16.59108293]
[1738961655480,16.59108293,190.18,190.1,16.59108293]
[1738961655680,21.79108293,190.19,190.11,16.59108293]
[1738961655874,16.62108293,190.2,190.13,16.59108293]
[1738961656199,21.87868293,190.2,190.12,16.84206293]
[1738961656369,16.59108293,190.18,190.11,16.59108293]
[1738961656569,16.59108293,190.17,190.1,16.59108293]
[1738961656789,16.59108293,190.16,190.08,16.59108293]
[1738961656985,16.59108293,190.15,190.08,16.59108293]
[1738961657284,16.59108293,190.14,190.07,0.12549]
[1738961657669,16.59108293,190.14,190.08,312.0]
[1738961657869,21.85048293,190.14,190.08,312.0]
[1738961658173,5.2594,190.14,190.08,328.59108293]
[1738961658363,5.2594,190.14,190.08,312.0]
[1738961658565,5.2594,190.14,190.08,328.59108293]
[1738961658973,16.59108293,190.16,190.09,16.59108293]
[1738961659178,16.59108293,190.16,190.08,312.0]
[1738961659378,16.59108293,190.15,190.08,328.59108293]
[1738961659579,16.59108293,190.14,190.08,312.0]
[1738961659783,16.59108293,190.13,190.08,312.0]
[1738961659989,16.59108293,190.14,190.08,312.0]
[1738961660302,16.59108293,190.16,190.08,328.59108293]
[1738961660497,16.59108293,190.16,190.09,16.59108293]
[1738961660996,21.79108293,190.17,190.09,16.59108293]
[1738961661164,5.2587,190.16,190.09,16.59108293]
[1738961661364,16.59108293,190.15,190.08,328.59108293]
[1738961662498,16.59108293,190.15,190.08,312.0]
[1738961662704,16.59108293,190.15,190.08,328.59108293]
[1738961662888,16.59108293,190.14,190.07,16.59108293]
[1738961663073,5.2595,190.13,190.07,16.59108293]
[1738961663892,5.2595,190.13,190.08,16.59108293]
[1738961664278,5.2595,190.13,190.07,16.59108293]
[1738961664673,16.59108293,190.14,190.07,16.59108293]
[1738961664674,5.2592,190.14,190.08,0.063]
[1738961665086,5.2592,190.14,190.08,16.65408293]
[1738961665275,5.2592,190.14,190.09,16.59108293]
[1738961666205,21.85008293,190.15,190.07,16.59108293]
[1738961666372,16.59108293,190.14,190.06,16.59108293]
[1738961667286,16.59108293,190.14,190.02,30.0]
[1738961667287,16.59108293,190.13,190.05,16.59108293]
[1738961667593,16.59108293,190.11,190.03,16.59108293]
[1738961667799,16.59108293,190.11,190.04,16.59108293]
[1738961667977,16.59108293,190.12,190.04,16.59108293]
[1738961668171,21.79108293,190.13,190.05,16.59108293]
[1738961668372,5.2598,190.12,190.07,16.59108293]
[1738961670277,5.2598,190.12,190.08,16.59108293]
[1738961670976,5.2598,190.12,190.09,16.59108293]
[1738961671388,18.4065,190.15,190.08,16.59108293]
[1738961673023,0.03,190.2,190.13,16.59108293]
[1738961673307,5.2579,190.19,190.14,16.59108293]
[1738961673620,5.2877,190.2,190.14,16.59108293]
[1738961673917,16.59108293,190.19,190.11,328.59108293]
[1738961674082,16.59108293,190.16,190.08,16.59108293]
[1738961674279,16.59108293,190.15,190.08,16.59108293]
[1738961675002,5.2592,190.14,190.08,16.59108293]
[1738961676112,5.2592,190.14,190.09,16.59108293]
[1738961676692,5.2589,190.16,190.09,16.59108293]
[1738961676892,5.2589,190.16,190.14,0.063]
[1738961677098,5.2584,190.17,190.14,0.063]
[1738961677998,16.62108293,190.19,190.14,0.063]
[1738961677999,5.2581,190.18,190.14,0.063]
[1738961678198,21.84918293,190.18,190.14,0.063]
[1738961679111,5.2581,190.18,190.14,0.063]
[1738961680220,16.59108293,190.17,190.14,0.063]
[1738961680384,16.59108293,190.16,190.14,0.063]
[1738961681224,16.59108293,190.15,190.14,0.063]
[1738961681938,21.85008293,190.15,190.14,0.063]
[1738961683215,5.259,190.15,190.14,0.063]
[1738961683797,21.85008293,190.15,190.14,0.063]
[1738961686003,21.84948293,190.17,190.14,0.063]
[1738961686598,5.2584,190.17,190.14,0.063]
[1738961689146,5.2581,190.18,190.14,16.65408293]
[1738961689813,16.62108293,190.19,190.14,0.063]
[1738961690050,16.59108293,190.18,190.14,0.063]
[1738961690237,1.01616115,190.19,190.14,0.063]
[1738961690411,16.59108293,190.16,190.14,0.063]
[1738961690825,16.59108293,190.17,190.14,0.063]
[1738961691152,16.59108293,190.16,190.14,0.063]
[1738961691538,5.259,190.15,190.14,0.063]
[1738961692928,21.87888293,190.19,190.14,0.063]
[1738961693128,5.2878,190.19,190.14,16.65408293]
[1738961693640,0.03,190.19,190.15,16.59108293]
[1738961693850,16.62108293,190.19,190.14,0.063]
[1738961694160,16.59108293,190.16,190.14,0.063]
[1738961694764,10.65002862,190.19,190.14,0.063]
[1738961695056,15.87812862,190.18,190.14,0.063]
[1738961695629,5.2581,190.18,190.14,0.063]
[1738961697069,10.62002862,190.16,190.14,0.063]
[1738961698165,10.62002862,190.17,190.14,0.063]
[1738961698752,10.65002862,190.19,190.14,0.063]
[1738961699146,10.62002862,190.17,190.14,0.063]
[1738961699539,5.2581,190.18,190.14,0.063]
[1738961699780,5.2879,190.19,190.14,0.063]
[1738961699956,5.2879,190.19,190.14,10.68302862]
[1738961700358,29.05262862,190.19,190.14,0.0001]
[1738961700562,10.62002862,190.18,190.14,0.0001]
[1738961700767,10.62002862,190.17,190.14,0.0001]
[1738961700968,10.62002862,190.16,190.14,0.0001]
[1738961701165,5.2584,190.17,190.14,0.0001]
[1738961701369,0.03,190.18,190.14,0.0001]
[1738961701981,0.03,190.18,190.14,10.62012862]
[1738961702188,0.03,190.18,190.17,10.62002862]
[1738961702557,0.03,190.19,190.18,0.12549]
[1738961702783,0.03,190.19,190.18,10.62002862]
[1738961703084,0.03,190.19,190.18,16.5804076]
[1738961703864,16.6104076,190.19,190.14,0.0001]
[1738961704069,16.5804076,190.17,190.14,0.0001]
[1738961704981,16.5804076,190.15,190.14,0.0001]
[1738961705185,21.8394076,190.15,190.14,0.0001]
[1738961705790,10.4586,190.17,190.14,0.0001]
[1738961705992,27.0390076,190.17,190.14,0.0001]
[1738961706187,16.5804076,190.16,190.14,0.0001]
[1738961706498,16.5804076,190.15,190.14,0.0001]
[1738961707493,21.8394076,190.15,190.14,0.0001]
[1738961709410,5.2,190.16,190.14,0.0001]
[1738961709965,21.8389076,190.17,190.14,0.0001]
[1738961710266,16.5804076,190.15,190.14,0.0001]
[1738961711414,21.8394076,190.15,190.14,0.0001]
[1738961712014,22.82574323,190.15,190.14,0.0001]
[1738961712507,22.82582829,190.15,190.14,0.0001]
[1738961713221,28.02582829,190.15,190.14,0.0001]
[1738961713391,22.82582829,190.15,190.14,0.0001]
[1738961713598,37.36316682,190.15,190.14,0.0001]
[1738961715614,22.82582829,190.15,190.14,0.0001]
[1738961716690,21.8394076,190.15,190.14,0.0001]
[1738961717616,27.0394076,190.15,190.14,0.0001]
[1738961718815,28.0394076,190.15,190.14,0.0001]
[1738961719208,37.50223613,190.15,190.14,0.0001]
[1738961719414,1.25098,190.11,190.0,12.0]
[1738961719715,5.2617,190.05,190.0,12.0]
[1738961720113,5.2617,190.05,190.0,28.5804076]
[1738961720444,5.2617,190.05,190.0,12.0]
[1738961721225,5.2614,190.06,190.0,28.5804076]
[1738961721433,21.8418076,190.06,190.0,12.0]
[1738961721630,33.1608152,190.01,189.94,0.063]
[1738961721820,16.5804076,189.95,189.94,0.063]
[1738961722040,16.5804076,189.95,189.94,0.0001]
[1738961722209,17.56801371,189.95,189.94,0.0001]
[1738961722407,18.81899371,189.95,189.94,0.0001]
[1738961722608,17.69350371,189.95,189.94,0.0001]
[1738961722905,17.56801371,189.95,189.94,0.0001]
[1738961723234,22.83251371,189.95,189.94,0.0001]
[1738961723439,22.83251371,189.95,189.82,8.05353829]
[1738961723440,0.25098,189.93,189.82,8.05353829]
[1738961723602,16.5804076,189.86,189.82,8.05353829]
[1738961723807,16.5804076,189.89,189.82,24.63394589]
[1738961724128,16.5804076,189.91,189.84,16.5804076]
[1738961724442,16.5804076,189.91,189.82,8.05353829]
[1738961724443,0.98753065,189.91,189.82,8.05353829]
[1738961724734,16.5804076,189.87,189.82,8.05353829]
[1738961724938,16.5804076,189.88,189.82,8.05353829]
[1738961725108,17.56821357,189.89,189.82,24.63394589]
[1738961725633,16.5804076,189.88,189.82,8.05353829]
[1738961725849,17.56813862,189.87,189.82,8.05353829]
[1738961726237,22.83441196,189.89,189.82,24.63394589]
[1738961726419,0.98780436,189.89,189.83,29.99225613]
[1738961726625,16.5804076,189.87,189.82,8.05353829]
[1738961726837,5.266,189.9,189.75,24.7696076]
[1738961726838,16.5804076,189.83,189.75,24.7696076]
[1738961727029,16.5804076,189.81,189.75,8.1892]
[1738961727355,16.5804076,189.82,189.76,16.5804076]
[1738961727529,16.5804076,189.82,189.75,24.7696076]
[1738961727737,17.56842124,189.84,189.77,16.5804076]
[1738961728235,17.56836199,189.86,189.79,16.5804076]
[1738961728422,16.5804076,189.85,189.78,16.5804076]
[1738961728621,16.5804076,189.83,189.76,16.5804076]
[1738961728947,16.5804076,189.84,189.77,16.5804076]
[1738961729139,16.5804076,189.85,189.79,13.41184853]
[1738961729325,16.5804076,189.86,189.79,29.99225613]
[1738961729550,17.56840811,189.87,189.8,16.5804076]
[1738961730134,16.5804076,189.85,189.79,16.5804076]
[1738961730355,16.5804076,189.85,189.78,29.99225613]
[1738961730527,16.5804076,189.84,189.78,13.41184853]
[1738961731146,16.5804076,189.85,189.78,16.5804076]
[1738961731347,16.5804076,189.83,189.76,16.5804076]
[1738961731535,16.5804076,189.81,189.75,24.7696076]
[1738961731738,16.5804076,189.81,189.76,13.41184853]
[1738961732074,16.5804076,189.85,189.78,29.99225613]
[1738961732231,16.5804076,189.88,189.81,16.5804076]
[1738961732430,16.5804076,189.84,189.77,16.5804076]
[1738961732735,16.5804076,189.82,189.75,24.7696076]
[1738961733061,16.5804076,189.81,189.76,13.41184853]
[1738961733457,16.5804076,189.81,189.75,8.1892]
[1738961733765,0.9880549,189.8,189.75,8.1892]
[1738961733970,16.5804076,189.8,189.75,8.1892]
[1738961734180,16.5804076,189.77,189.73,13.41184853]
[1738961734475,16.5804076,189.77,189.7,24.7211076]
[1738961734476,16.5804076,189.78,189.71,16.5804076]
[1738961734642,16.5804076,189.79,189.72,16.5804076]
[1738961734968,16.5804076,189.76,189.7,24.7211076]
[1738961735474,16.5804076,189.77,189.71,0.02146441]
[1738961735835,16.5804076,189.77,189.7,24.7211076]
[1738961736173,16.5804076,189.77,189.71,0.06008967]
[1738961736352,16.5804076,189.77,189.7,24.7211076]
[1738961736664,16.5804076,189.78,189.71,16.5804076]
[1738961736845,16.5804076,189.79,189.72,16.5804076]
[1738961737051,16.5804076,189.73,189.68,26.91995476]
[1738961737257,16.5804076,189.72,189.67,26.93691412]
[1738961737555,16.5804076,189.71,189.65,26.04398254]
[1738961737768,16.5804076,189.73,189.68,26.91995476]
[1738961738065,16.5804076,189.72,189.67,26.93691412]
[1738961738381,16.5804076,189.71,189.67,26.93691412]
[1738961738668,16.5804076,189.71,189.65,26.04398254]
[1738961738970,16.5804076,189.7,189.64,26.7521125]
[1738961739274,16.5804076,189.73,189.68,26.98295476]
[1738961739437,16.5804076,189.74,189.68,26.95240676]
[1738961739638,16.5804076,189.75,189.69,13.41184853]
[1738961739864,16.5804076,189.75,189.69,29.99225613]
[1738961740438,16.5804076,189.76,189.69,29.99225613]
[1738961740672,11.2492,189.79,189.72,13.41184853]
[1738961740673,16.5804076,189.77,189.72,13.41184853]
[1738961740884,16.5804076,189.77,189.71,16.5804076]
[1738961740885,16.5804076,189.79,189.73,29.99225613]
[1738961741070,16.5804076,189.8,189.73,29.99225613]
[1738961741277,17.56856421,189.81,189.75,16.5804076]
[1738961741470,22.83696421,189.81,189.74,16.5804076]
[1738961741669,22.83696421,189.81,189.68,26.95240676]
[1738961741670,16.5804076,189.79,189.73,16.5804076]
[1738961741870,0.98834533,189.78,189.73,16.5804076]
[1738961742082,17.56874476,189.8,189.73,16.5804076]
[1738961742265,0.98833716,189.8,189.74,16.5804076]
[1738961742475,17.56874476,189.8,189.73,16.5804076]
[1738961742672,6.25703716,189.8,189.74,23.9972097]
[1738961742870,30.25424686,189.8,189.73,23.9972097]
[1738961743186,6.25703716,189.8,189.74,23.9972097]
[1738961743372,30.25424686,189.8,189.73,23.9972097]
[1738961743572,23.9972097,189.79,189.72,23.9972097]
[1738961743795,23.9972097,189.79,189.73,23.9972097]
[1738961743969,0.98833716,189.8,189.76,23.9972097]
[1738961744169,23.9972097,189.8,189.73,30.5667097]
[1738961744482,0.98827492,189.79,189.74,23.9972097]
[1738961744791,30.25448462,189.79,189.72,25.6412097]
[1738961745091,30.25448462,189.79,189.72,23.9972097]
[1738961745683,24.98548462,189.79,189.73,23.9972097]
[1738961745887,30.25347434,189.83,189.76,23.9972097]
[1738961746091,6.25626464,189.83,189.77,23.9972097]
[1738961746287,81.3,189.84,189.78,23.9972097]
[1738961746469,82.28804736,189.84,189.78,23.9972097]
[1738961747796,5.2678,189.83,189.78,23.9972097]
[1738961747969,82.28804736,189.84,189.78,23.9972097]
[1738961747970,111.55285706,189.84,189.78,23.9972097]
[1738961748296,110.5648097,189.84,189.78,23.9972097]
[1738961748597,81.3,189.84,189.79,23.9972097]
[1738961749098,29.9372097,189.86,189.79,23.9972097]
[1738961749265,35.2042097,189.86,189.79,23.9972097]
[1738961749601,5.94,189.86,189.8,23.9972097]
[1738961749762,5.94,189.86,189.76,13.41184853]
[1738961749763,6.25459281,189.87,189.81,23.9972097]
[1738961749964,30.25180251,189.87,189.81,23.9972097]
[1738961750485,24.98510251,189.87,189.81,23.9972097]
[1738961750691,6.25400387,189.89,189.83,23.9972097]
[1738961750913,2.6326712,189.9,189.79,13.41184853]
[1738961751114,31.8957809,189.9,189.83,23.9972097]
[1738961751490,30.2508809,189.9,189.83,23.9972097]
[1738961751715,0.9877712,189.9,189.84,23.9972097]
[1738961752120,23.9972097,189.91,189.85,23.9972097]
[1738961752285,29.2628097,189.91,189.84,23.9972097]
[1738961754124,24.98488961,189.9,189.83,23.9972097]
[1738961754292,23.9972097,189.87,189.81,23.9972097]
[1738961754711,23.9972097,189.88,189.81,23.9972097]
[1738961755108,30.25098961,189.9,189.83,23.9972097]
[1738961755296,23.9972097,189.89,189.83,23.9972097]
[1738961755705,30.25098961,189.9,189.83,23.9972097]
[1738961755895,30.25098961,189.9,189.84,23.9972097]
[1738961755896,6.25377991,189.9,189.84,23.9972097]
[1738961756094,0.98767991,189.9,189.86,23.9972097]
[1738961756299,6.28245816,189.94,189.89,23.9972097]
[1738961756521,0.03,189.94,189.9,23.9972097]
[1738961756734,0.03,189.94,189.91,23.9972097]
[1738961756948,0.03,189.94,189.9,23.9972097]
[1738961757221,0.03,189.94,189.89,23.9972097]
[1738961757399,0.03,189.94,189.93,23.9972097]
[1738961758920,0.03,189.94,189.93,37.66003823]
[1738961759223,6.24779445,190.09,189.98,6.3506]
[1738961759403,30.24500415,190.09,190.03,23.9972097]
[1738961759627,30.27500415,190.09,190.03,23.9972097]
[1738961759804,23.9972097,190.04,189.95,23.9972097]
[1738961759998,0.9871559,190.03,189.9,7.9238]
[1738961760304,23.9972097,190.02,189.95,23.9972097]
[1738961760632,0.9871559,190.03,189.97,23.9972097]
[1738961760803,23.9972097,190.02,189.95,23.9972097]
[1738961761009,23.4972097,190.0,189.9,7.9238]
[1738961761315,23.9972097,189.98,189.91,23.9972097]
[1738961761496,30.24796346,189.99,189.92,23.9972097]
[1738961761911,0.98725376,189.99,189.93,23.9972097]
[1738961762131,5.2631,190.01,189.96,23.9972097]
[1738961762310,31.90789726,190.02,189.96,23.9972097]
[1738961762622,31.90789726,190.02,189.95,23.9972097]
[1738961762789,31.90789726,190.02,189.96,23.9972097]
[1738961762991,5.2,190.05,190.01,23.9972097]
[1738961763218,5.2617,190.06,190.01,23.9972097]
[1738961763449,2.54742467,190.07,190.02,23.9972097]
[1738961763923,0.98712467,190.07,190.02,23.9972097]
[1738961764245,0.98712467,190.07,190.04,23.9972097]
[1738961764246,0.03,190.07,190.04,23.9972097]
[1738961764748,0.03,190.07,190.01,6.0848]
[1738961765050,0.03,190.07,190.06,23.9972097]
[1738961765422,4.8198,190.12,190.06,23.9972097]
[1738961765621,4.8198,190.12,190.07,23.9972097]
[1738961765817,0.03,190.13,190.09,23.9972097]
[1738961766133,0.03,190.13,190.08,23.9972097]
[1738961766334,0.03,190.13,190.11,23.9972097]
[1738961766724,0.03,190.13,190.1,23.9972097]
[1738961767242,0.03,190.13,190.12,23.9972097]
[1738961768248,0.03,190.18,190.12,37.53454823]
[1738961768446,0.03,190.18,190.17,23.9972097]
[1738961768648,0.03,190.18,190.17,47.9944194]
[1738961768856,0.03,190.19,190.17,47.9944194]
[1738961769055,0.03,190.2,190.18,23.9972097]
[1738961769235,0.03,190.2,190.19,23.9972097]
[1738961769557,0.03,190.2,190.18,23.9972097]
[1738961769731,0.03,190.2,190.19,23.9972097]
[1738961770868,0.03,190.2,190.19,37.53454823]
[1738961771032,0.03,190.2,190.19,67.66003823]
[1738961771236,5.2538,190.34,190.21,0.12549]
[1738961771443,29.2510097,190.34,190.27,23.9972097]
[1738961771753,5.2543,190.32,190.26,23.9972097]
[1738961771953,5.2543,190.32,190.19,13.53733853]
[1738961771954,24.98274942,190.31,190.24,23.9972097]
[1738961772129,23.9972097,190.29,190.22,23.9972097]
[1738961772333,0.98572185,190.28,190.22,23.9972097]
[1738961772547,0.98572185,190.28,190.21,23.9972097]
[1738961772548,24.98293155,190.28,190.21,23.9972097]
[1738961772750,0.98572185,190.28,190.22,23.9972097]
[1738961773143,23.9972097,190.27,190.2,23.9972097]
[1738961773339,24.98308781,190.26,190.18,23.9972097]
[1738961773654,23.9972097,190.25,190.18,23.9972097]
[1738961773860,23.9972097,190.23,190.17,23.9972097]
[1738961774038,30.21241102,190.24,190.17,23.9972097]
[1738961775354,23.9972097,190.27,190.2,23.9972097]
[1738961775659,24.96992567,190.26,190.2,23.9972097]
[1738961776034,0.97271597,190.26,190.2,23.9972097]
[1738961776257,23.9972097,190.25,190.18,23.9972097]
[1738961776561,23.9972097,190.22,190.15,23.9972097]
[1738961777239,23.9972097,190.22,190.12,6.4702]
[1738961777240,23.9972097,190.19,190.12,23.9972097]
[1738961777440,23.9972097,190.19,190.07,6.4744]
[1738961777441,23.9972097,190.16,190.09,23.9972097]
[1738961777973,0.97271597,190.15,190.11,23.9972097]
[1738961778264,24.96992567,190.17,190.1,23.9972097]
[1738961778561,0.97271597,190.2,190.14,23.9972097]
[1738961779269,30.22712567,190.22,190.15,23.9972097]
[1738961779460,0.97271597,190.22,190.16,23.9972097]
[1738961779760,41.2816097,190.24,190.18,23.9972097]
[1738961779761,11.0667,190.24,190.18,23.9972097]
[1738961780172,12.03941597,190.24,190.17,23.9972097]
[1738961780344,5.81,190.24,190.19,23.9972097]
[1738961780545,5.81,190.24,190.2,23.9972097]
[1738961780861,5.81,190.24,190.18,23.9972097]
[1738961781261,36.03662567,190.24,190.17,23.9972097]
[1738961781464,0.03,190.24,190.21,23.9972097]
[1738961781763,0.03,190.24,190.23,23.9972097]
[1738961783169,5.2,190.37,190.23,23.9972097]
[1738961783170,0.03,190.39,190.27,13.53733853]
[1738961783368,0.03,190.39,190.37,23.9972097]
[1738961784674,0.03,190.39,190.36,23.9972097]
[1738961784869,0.03,190.39,190.33,23.9972097]
[1738961785249,24.0272097,190.38,190.31,23.9972097]
[1738961785572,23.9972097,190.35,190.28,23.9972097]
[1738961785958,29.2506097,190.36,190.29,23.9972097]
[1738961786161,23.9972097,190.35,190.28,23.9972097]
[1738961786397,24.96992567,190.34,190.27,23.9972097]
[1738961786886,44.05720688,190.35,190.28,43.08449091]
[1738961787064,5.2529,190.37,190.31,43.08449091]
[1738961787265,5.2529,190.37,190.32,43.08449091]